bitfinex/quotes_ETHUSD_20220226
["timestamp","ask_amount","ask_price","bid_price","bid_amount"]
[1645915577400,1.39168777,2808.5,2808.4,0.509]
[1645915577899,1.39168777,2808.5,2808.4,1.3993]
[1645915579709,0.005281,2808.6,2808.4,1.3993]
[1645915579905,1.39067159,2808.5,2808.4,2.28955]
[1645915580508,0.005281,2808.6,2808.4,2.28955]
[1645915580743,1.02277831,2809.2,2808.4,2.28955]
[1645915581036,0.005281,2808.6,2808.4,2.28955]
[1645915581839,0.00380072,2809.1,2808.4,13.07955]
[1645915582034,0.00528094,2808.6,2808.5,0.89025]
[1645915582233,0.00528094,2808.6,2808.5,12.57047]
[1645915582435,0.00528094,2808.6,2808.5,12.87047]
[1645915582838,0.00528094,2808.6,2808.5,13.87047]
[1645915583034,0.00380072,2809.3,2808.6,0.3]
[1645915583234,1.39278475,2809.3,2808.6,0.809]
[1645915583439,0.00528088,2808.7,2808.6,0.809]
[1645915584238,0.00380072,2809.3,2808.6,0.809]
[1645915584485,1.39686032,2809.3,2808.8,0.89022]
[1645915584684,0.02111987,2809.2,2808.8,0.89022]
[1645915584879,1.3930596,2809.1,2808.8,0.89022]
[1645915585682,1.3930596,2809.1,2808.8,1.19022]
[1645915585683,1.3930596,2809.0,2808.8,1.19022]
[1645915586483,0.0052804,2809.1,2808.8,2.58939]
[1645915586682,0.00380072,2809.6,2808.8,2.58939]
[1645915586881,0.00195629,2809.0,2808.8,3.58939]
[1645915587283,0.00195629,2809.0,2808.8,14.37939]
[1645915587486,0.00195629,2809.0,2808.8,15.2694052]
[1645915587685,0.00195629,2809.0,2808.8,15.5694052]
[1645915587882,1.39435325,2809.1,2808.9,1.78004]
[1645915588083,0.02113484,2809.5,2809.2,0.89003]
[1645915588339,1.3940841,2809.4,2809.2,0.89003]
[1645915589338,1.3940841,2809.3,2809.2,0.89003]
[1645915589540,1.3940841,2809.3,2809.2,0.3]
[1645915589939,1.3940841,2809.3,2809.1,1.19003]
[1645915590138,1.3940841,2809.3,2809.1,0.09386089]
[1645915590340,1.3940841,2809.2,2809.1,0.09386089]
[1645915591743,1.3940841,2809.2,2809.1,0.98389089]
[1645915592190,1.3940841,2809.2,2809.1,1.28389089]
[1645915600996,1.3940841,2809.2,2809.1,0.39386089]
[1645915601197,1.3940841,2809.2,2809.1,0.09386089]
[1645915602601,1.3940841,2809.2,2808.9,0.3]
[1645915602602,1.7481841,2809.2,2808.9,0.3]
[1645915602806,1.7481841,2809.1,2808.7,4.44451]
[1645915603001,1.3940841,2809.0,2808.7,3.44451]
[1645915603261,1.3940841,2808.9,2808.7,4.44451]
[1645915603449,1.3940841,2808.8,2808.7,2.58931]
[1645915603658,1.3940841,2808.8,2808.7,3.58931]
[1645915607187,1.3940841,2808.8,2808.7,4.44451]
[1645915607787,1.3940841,2808.8,2808.7,4.58691]
[1645915608188,0.00380072,2809.5,2808.7,6.36707]
[1645915608390,0.00380072,2809.5,2809.0,0.89007]
[1645915608591,0.02113555,2809.3,2809.1,0.89007]
[1645915608791,1.35753982,2809.2,2809.1,1.39907]
[1645915609591,1.35753982,2809.4,2809.1,2.28915]
[1645915609792,0.0052842,2809.3,2809.1,2.58915]
[1645915609993,0.0052842,2809.3,2809.2,0.3]
[1645915610195,1.36223428,2809.3,2809.2,0.3]
[1645915610741,1.35695008,2809.3,2809.1,2.28421646]
[1645915610932,1.01897759,2809.6,2809.1,2.28421646]
[1645915610933,1.35695008,2809.2,2809.1,1.28421646]
[1645915611333,1.35695008,2809.2,2809.1,2.17429646]
[1645915612236,1.35695008,2809.2,2809.1,2.77429646]
[1645915612436,1.35695008,2809.2,2809.1,3.77429646]
[1645915614889,1.30695008,2809.2,2809.1,3.77429646]
[1645915622889,1.30695008,2809.2,2809.1,4.62949646]
[1645915623088,1.30695008,2809.2,2809.1,3.77429646]
[1645915624892,1.30695008,2809.2,2809.1,4.62949646]
[1645915625093,1.30695008,2809.2,2809.1,3.77429646]
[1645915626540,1.26695008,2809.2,2809.1,3.77429646]
[1645915627340,1.21922364,2809.2,2809.1,3.77429646]
[1645915627540,0.35790072,2809.8,2809.2,0.3]
[1645915627541,1.02277831,2809.8,2809.2,0.3]
[1645915627743,0.0052842,2809.3,2809.2,0.3]
[1645915628748,0.37523365,2809.7,2809.2,0.3]
[1645915628749,0.3541,2809.7,2809.2,0.3]
[1645915628944,0.00528409,2809.4,2809.1,2.47429646]
[1645915629145,0.00528409,2809.4,2809.1,1.69908]
[1645915629349,0.00528409,2809.4,2809.1,0.809]
[1645915629796,0.35790072,2809.7,2809.1,0.809]
[1645915629995,0.3541,2809.7,2809.1,0.809]
[1645915630296,0.00528409,2809.4,2809.1,0.809]
[1645915631095,0.00380072,2809.7,2809.1,0.809]
[1645915631300,1.01897759,2809.8,2809.1,0.809]
[1645915631496,0.00528409,2809.4,2809.1,0.809]
[1645915632298,0.00380072,2809.7,2809.1,0.809]
[1645915632498,1.01897759,2809.8,2809.1,0.809]
[1645915632499,0.00516519,2809.4,2809.1,0.809]
[1645915632997,0.00516519,2809.4,2809.1,0.509]
[1645915633440,0.00380072,2809.7,2809.1,0.509]
[1645915633644,0.00516519,2809.4,2809.1,0.509]
[1645915634641,0.00380072,2809.7,2809.1,0.509]
[1645915634843,0.00516519,2809.4,2809.1,0.509]
[1645915635245,0.33372358,2809.8,2809.1,0.509]
[1645915635447,0.02065767,2809.8,2809.1,0.509]
[1645915635644,0.02445839,2809.8,2809.0,1.7801]
[1645915635845,0.30926519,2809.7,2809.0,1.7801]
[1645915636047,0.25926519,2809.7,2809.0,1.7801]
[1645915636245,0.26306591,2809.7,2809.0,1.7801]
[1645915636451,0.25926519,2809.7,2809.0,1.7801]
[1645915638496,0.00195222,2809.5,2809.0,1.7801]
[1645915639301,0.00195222,2809.5,2808.7,2.63556]
[1645915639503,1.86414975,2808.9,2808.3,3.4209]
[1645915639701,1.86414975,2808.9,2808.3,1.39037]
[1645915639912,3.75926519,2808.8,2808.3,0.5]
[1645915640103,14.54926519,2808.8,2807.9,0.00082331]
[1645915640305,0.1424,2808.7,2807.9,0.00082331]
[1645915640502,11.85654278,2808.7,2807.9,0.00082331]
[1645915640766,15.51414278,2808.6,2807.9,0.00082331]
[1645915640955,0.25926519,2808.4,2807.9,0.00082331]
[1645915641155,0.1424,2808.3,2807.9,0.00082331]
[1645915641554,10.79,2808.2,2807.9,0.00082331]
[1645915641757,15.3234102,2808.1,2807.9,0.00082331]
[1645915642057,15.3234102,2808.1,2806.8,0.67508919]
[1645915642058,14.84926519,2808.0,2806.8,0.67508919]
[1645915642452,0.1424,2807.9,2807.0,0.02115122]
[1645915642654,0.25926519,2807.8,2807.0,0.02115122]
[1645915642851,0.1424,2807.7,2807.0,0.02115122]
[1645915643251,15.99166519,2807.8,2806.6,0.67508919]
[1645915643458,20.98631387,2807.8,2806.8,0.02115066]
[1645915643657,20.84391387,2807.8,2806.8,0.02115066]
[1645915644058,15.84926519,2807.8,2806.8,0.02115066]
[1645915644496,15.84926519,2807.8,2806.4,0.67508919]
[1645915644497,0.1424,2807.7,2806.4,0.67508919]
[1645915644695,11.04926519,2807.5,2806.7,0.02045284]
[1645915644896,0.25926519,2807.3,2806.7,0.02045284]
[1645915645495,0.25926519,2807.3,2806.4,0.67508919]
[1645915645694,0.25926519,2807.3,2806.3,0.92508919]
[1645915645895,0.25926519,2807.2,2806.4,0.02045419]
[1645915646902,0.25926519,2807.2,2806.2,0.67508919]
[1645915647205,15.59,2807.6,2806.3,0.00480904]
[1645915647206,0.25926519,2807.5,2806.3,0.00480904]
[1645915647396,0.25926519,2807.5,2806.4,0.16229042]
[1645915648252,0.25926519,2807.5,2806.5,0.16229042]
[1645915649046,11.19166519,2807.5,2806.5,0.16229042]
[1645915649246,0.25926519,2807.3,2806.5,0.16229042]
[1645915649451,0.25926519,2807.3,2806.4,0.01858053]
[1645915649646,0.25926519,2807.3,2806.5,0.16229042]
[1645915650448,0.25926519,2807.5,2806.5,0.16229042]
[1645915651648,3.6424,2807.6,2806.5,0.16229042]
[1645915651853,0.01721776,2807.7,2806.7,0.89089]
[1645915652133,0.01721776,2807.7,2806.8,0.16229042]
[1645915653127,0.01721776,2807.7,2806.9,0.16229042]
[1645915653330,0.01721776,2807.7,2807.0,0.16229042]
[1645915653529,0.01721776,2807.7,2807.1,0.16229042]
[1645915653729,0.01721776,2807.7,2806.7,0.01872698]
[1645915653930,0.01721776,2807.7,2806.8,0.16147103]
[1645915654129,0.01721776,2807.7,2806.9,0.16147103]
[1645915654332,0.01721776,2807.7,2807.0,0.16147103]
[1645915654532,0.01721776,2807.7,2807.1,0.16147103]
[1645915654735,0.01721776,2807.7,2806.9,0.16147103]
[1645915654932,0.01721776,2807.7,2807.0,0.16148031]
[1645915655132,0.01721776,2807.7,2807.1,0.16148031]
[1645915655333,0.01721776,2807.7,2806.5,0.1424]
[1645915655535,0.01721776,2807.7,2806.7,0.01871835]
[1645915655755,0.01721776,2807.7,2806.8,0.16148355]
[1645915656550,0.01721776,2807.7,2806.4,0.1424]
[1645915656749,0.01721776,2807.7,2806.7,0.01871205]
[1645915657049,0.01565233,2807.7,2806.8,0.16141563]
[1645915657848,0.01565233,2807.7,2806.9,0.16141563]
[1645915658048,0.01565233,2807.7,2806.8,0.16141563]
[1645915658248,0.01565233,2807.7,2806.9,0.16132718]
[1645915658452,0.01565233,2807.7,2807.0,0.16132718]
[1645915658654,0.01565233,2807.7,2806.7,0.01871205]
[1645915658954,3.5,2808.2,2806.8,0.16132504]
[1645915659159,4.0054778,2808.3,2806.8,0.18003744]
[1645915659356,4.6550561,2808.6,2806.8,0.18003744]
[1645915659357,3.5,2808.5,2806.9,1.02442504]
[1645915659618,2.8733,2808.6,2806.9,1.02442504]
[1645915659619,1.31526277,2808.4,2807.0,0.30372504]
[1645915659821,4.5,2808.5,2807.5,0.89062]
[1645915660017,1.3,2808.6,2807.3,0.1424]
[1645915660217,1.31527327,2808.5,2807.4,0.16118619]
[1645915660414,0.3,2808.6,2807.4,0.16118619]
[1645915660618,0.3,2808.6,2807.5,0.1424]
[1645915660619,1.3,2808.6,2807.5,0.1424]
[1645915660816,0.3,2808.6,2807.5,0.1424]
[1645915661018,0.3,2808.6,2807.2,2.3285]
[1645915661019,1.31529932,2808.5,2807.3,0.1424]
[1645915661219,5.1,2808.7,2807.3,0.1424]
[1645915661417,1.31529733,2808.6,2807.4,0.51528078]
[1645915661618,3.5,2808.5,2807.5,0.1424]
[1645915662217,3.5,2808.7,2807.5,0.1424]
[1645915662423,1.31543905,2808.6,2807.5,0.1424]
[1645915662622,3.5,2808.5,2807.3,0.4965]
[1645915662820,3.5,2808.5,2807.4,0.16120109]
[1645915663020,3.5,2808.5,2807.3,0.4965]
[1645915663661,1.31522118,2808.4,2807.3,0.4965]
[1645915663859,4.8,2808.5,2807.3,0.4965]
[1645915664060,3.5,2808.3,2807.3,0.4965]
[1645915664460,3.5,2808.3,2807.3,0.1424]
[1645915664658,4.5,2808.3,2807.3,0.1424]
[1645915664859,3.5,2808.3,2807.3,0.1424]
[1645915665065,4.5,2808.3,2807.3,0.1424]
[1645915665263,5.6908632,2808.3,2807.3,0.1424]
[1645915665860,5.6908632,2808.3,2807.2,1.1654]
[1645915666264,0.3541,2808.1,2807.1,0.1424]
[1645915666462,4.3909458,2808.0,2807.1,0.1424]
[1645915666662,4.3909458,2808.0,2807.0,0.01871273]
[1645915667326,4.3909458,2808.0,2806.7,0.25]
[1645915667525,4.3909458,2808.0,2806.9,0.01871228]
[1645915667730,3.5,2808.0,2807.0,0.1612717]
[1645915667928,3.8,2808.0,2807.0,0.1612717]
[1645915668731,3.8,2808.0,2807.1,0.1612717]
[1645915668930,3.8,2808.0,2806.9,0.01871228]
[1645915669129,3.8,2808.0,2807.0,0.16128725]
[1645915669532,0.3,2808.0,2807.0,0.16128725]
[1645915669833,5.2965,2808.2,2807.1,0.16128725]
[1645915670033,3.5,2808.4,2807.1,0.89077]
[1645915670239,0.1424,2808.6,2807.2,0.16127485]
[1645915670240,1.31679297,2808.3,2807.2,0.16127485]
[1645915670432,3.9965,2808.6,2807.2,3.07467485]
[1645915670637,1.31690037,2808.5,2807.3,0.16127485]
[1645915670848,3.5,2808.4,2807.3,0.16127485]
[1645915671049,2.0965,2808.6,2807.3,0.16127485]
[1645915671050,4.9965,2808.6,2807.3,0.16127485]
[1645915671248,1.4596421,2808.5,2807.3,0.30367485]
[1645915671446,1.3172421,2808.4,2807.4,0.16127485]
[1645915672047,1.3172421,2808.4,2807.5,0.16123557]
[1645915672248,1.3172421,2808.4,2807.3,0.1424]
[1645915672450,1.3172421,2808.4,2807.4,0.16125663]
[1645915672648,1.3172421,2808.4,2807.3,0.4424]
[1645915672855,1.3172421,2808.4,2807.4,0.16125524]
[1645915673047,1.3172421,2808.4,2807.3,0.1424]
[1645915673450,1.3172421,2808.4,2807.4,0.16131181]
[1645915673652,1.3172421,2808.4,2807.3,0.1424]
[1645915673854,1.3172421,2808.4,2807.4,0.16131014]
[1645915674504,1.3172421,2808.4,2807.2,3.9134]
[1645915674704,1.3172421,2808.4,2807.3,0.16136887]
[1645915675105,4.9965,2808.6,2807.3,0.16136887]
[1645915675106,1.3172421,2808.3,2807.3,0.16136887]
[1645915675309,4.6424,2808.6,2807.3,0.16136887]
[1645915675310,4.9424,2808.6,2807.3,0.16136887]
[1645915675508,1.31936847,2808.5,2807.3,0.16136887]
[1645915676504,3.5,2808.4,2807.3,0.16136887]
[1645915676706,1.31936847,2808.3,2807.3,0.16136887]
[1645915676903,1.31936847,2808.5,2807.3,0.16136887]
[1645915677105,5.1,2808.6,2807.3,0.16136887]
[1645915677106,1.31936847,2808.4,2807.3,0.16136887]
[1645915677305,1.31936847,2808.3,2807.3,0.16136887]
[1645915677504,1.31936847,2808.2,2807.3,0.16136887]
[1645915677706,1.31936847,2808.1,2807.3,0.16136887]
[1645915677905,1.31936847,2808.0,2807.3,0.16136887]
[1645915678109,3.5,2808.4,2807.3,0.16136887]
[1645915678348,1.32089297,2808.3,2807.3,0.16136887]
[1645915678547,3.5,2808.2,2807.3,0.16136887]
[1645915678747,1.32089297,2808.1,2807.3,0.16136887]
[1645915679146,3.5,2808.4,2807.3,0.16136887]
[1645915679344,1.6758276,2808.3,2807.3,0.16136887]
[1645915679545,1.6758276,2808.2,2807.3,0.16136887]
[1645915679747,1.3217276,2808.1,2807.3,0.16136887]
[1645915679949,4.8217276,2808.1,2807.3,0.16136887]
[1645915680448,1.3217276,2808.0,2807.3,0.16136887]
[1645915680657,0.1424,2808.4,2807.4,0.16136887]
[1645915680658,1.3217276,2807.9,2807.4,0.16136887]
[1645915680849,1.3217276,2807.8,2807.5,0.16136887]
[1645915681047,0.3541,2808.2,2807.6,0.16136887]
[1645915681247,1.32330554,2808.1,2807.0,2.67748645]
[1645915681446,4.82330554,2808.1,2807.1,0.16191954]
[1645915681648,1.32330554,2808.0,2807.1,0.16191954]
[1645915682701,1.32330554,2807.9,2807.1,0.16191954]
[1645915682905,1.32330554,2808.0,2807.1,0.16191954]
[1645915683103,1.32330554,2807.9,2807.1,0.16191954]
[1645915683310,1.32330554,2807.8,2807.1,1.05267954]
[1645915683605,0.3541,2808.2,2807.2,0.16191954]
[1645915683804,0.3541,2808.3,2807.2,0.16191954]
[1645915684006,1.67929763,2808.2,2807.2,0.16191954]
[1645915684203,1.32519763,2808.1,2807.2,0.16191954]
[1645915685204,1.32519763,2808.1,2807.2,0.83700873]
[1645915686461,1.32519763,2808.0,2807.2,0.83700873]
[1645915686661,1.32519763,2807.9,2807.2,0.83700873]
[1645915686862,0.3541,2808.2,2807.2,0.83700873]
[1645915686863,1.32519763,2807.8,2807.2,0.83700873]
[1645915687162,0.3541,2808.2,2807.2,1.13700873]
[1645915687359,1.32795643,2808.1,2807.3,0.16191954]
[1645915687560,1.32795643,2808.1,2807.4,0.16191954]
[1645915687758,1.32795643,2808.1,2807.5,0.16191954]
[1645915687963,1.32795643,2808.1,2807.6,0.16191954]
[1645915688161,1.32795643,2808.1,2807.7,0.16191954]
[1645915688370,1.32795643,2808.1,2807.8,0.16191954]
[1645915688566,1.32795643,2808.1,2807.2,0.83700873]
[1645915688764,1.32795643,2808.1,2807.3,0.16241521]
[1645915688963,1.32795643,2808.1,2807.4,0.16241521]
[1645915689165,1.32795643,2808.1,2807.5,0.16241521]
[1645915689364,1.32795643,2808.1,2807.6,0.16241521]
[1645915689601,1.32795643,2808.1,2807.7,0.16241521]
[1645915689802,1.32795643,2808.0,2807.8,0.16241521]
[1645915690004,1.32795643,2807.9,2807.4,0.89067]
[1645915690201,1.32795643,2807.8,2807.5,0.16240618]
[1645915690402,0.4965,2808.4,2807.8,0.28857003]
[1645915690601,1.68203405,2808.3,2807.9,0.16240618]
[1645915690802,1.32793405,2808.2,2807.9,0.16240618]
[1645915692704,1.32284405,2808.1,2807.9,0.16240618]
[1645915692903,0.3541,2808.4,2807.9,0.16240618]
[1645915693348,1.01897759,2808.4,2807.9,0.16240618]
[1645915693754,4.16487759,2808.3,2807.9,0.16240618]
[1645915693951,3.5,2808.3,2807.9,0.16240618]
[1645915694351,1.01897759,2808.4,2807.9,0.16240618]
[1645915694650,0.96897759,2808.4,2807.9,0.16240618]
[1645915694854,0.66487759,2808.4,2807.9,0.16240618]
[1645915695251,0.66487759,2808.5,2807.9,0.16240618]
[1645915695450,5.1,2808.6,2807.9,0.16240618]
[1645915695451,0.66487759,2808.4,2807.9,0.16240618]
[1645915696251,0.66487759,2808.5,2807.9,0.16240618]
[1645915696454,1.0,2808.6,2807.9,0.16240618]
[1645915696455,0.66487759,2808.3,2807.9,0.16240618]
[1645915696651,1.16137759,2808.4,2807.9,0.16240618]
[1645915697000,4.51897759,2808.3,2807.9,0.16240618]
[1645915697198,5.81897759,2808.3,2807.9,0.16240618]
[1645915697697,0.66487759,2808.2,2807.9,0.16240618]
[1645915703451,0.66487759,2808.2,2807.9,0.66240618]
[1645915703655,0.66487759,2808.2,2807.9,0.5]
[1645915703860,0.66487759,2808.2,2807.8,0.28857003]
[1645915706708,0.66487759,2808.1,2807.8,0.28857003]
[1645915707911,0.66487759,2808.3,2807.8,0.28857003]
[1645915708573,0.61487759,2808.3,2807.8,0.28857003]
[1645915709764,5.1541,2808.4,2807.8,0.28857003]
[1645915710163,1.6541,2808.4,2807.8,0.28857003]
[1645915710365,5.1541,2808.4,2807.8,0.28857003]
[1645915710664,4.1541,2808.4,2807.8,0.28857003]
[1645915710863,5.1541,2808.4,2807.8,0.28857003]
[1645915711065,10.79,2808.2,2807.8,0.28857003]
[1645915711269,10.79,2808.0,2807.8,0.28857003]
[1645915711465,14.4324,2807.9,2807.8,0.28857003]
[1645915711668,3.5,2807.9,2807.8,0.28857003]
[1645915712098,0.3541,2807.6,2807.0,0.01878052]
[1645915712402,0.6541,2807.6,2807.0,0.01878052]
[1645915712804,0.6541,2807.6,2807.1,0.14738884]
[1645915712805,1.69919925,2807.5,2807.1,0.14738884]
[1645915713002,1.69919925,2807.4,2806.8,0.14738884]
[1645915713203,0.3,2807.6,2806.9,0.14738884]
[1645915713204,1.34509925,2807.3,2806.9,0.14738884]
[1645915713404,1.34509925,2807.2,2807.0,0.14738884]
[1645915713604,0.9541,2807.6,2807.1,0.14738884]
[1645915713805,1.34512592,2807.5,2807.2,0.14738884]
[1645915714007,1.34512592,2807.5,2807.3,0.14738884]
[1645915714208,1.34512592,2807.5,2807.4,0.14738884]
[1645915714603,1.34512592,2807.5,2806.9,0.14738884]
[1645915714803,1.34512592,2807.5,2807.0,0.14738884]
[1645915715004,1.34512592,2807.5,2807.1,0.14738884]
[1645915715203,1.34512592,2807.5,2807.2,0.14738884]
[1645915715405,1.34512592,2807.5,2807.3,0.14738884]
[1645915715602,1.34512592,2807.5,2807.4,0.14738884]
[1645915716254,1.34512592,2807.5,2806.8,0.14738884]
[1645915716452,1.34512592,2807.5,2806.9,0.14738884]
[1645915716654,1.34512592,2807.5,2807.0,0.14738884]
[1645915717454,1.34512592,2807.4,2807.0,0.14738884]
[1645915717655,1.34512592,2807.3,2807.0,0.14738884]
[1645915717855,0.36518591,2807.7,2807.1,0.14738884]
[1645915718054,1.6981877,2807.6,2807.2,0.14738884]
[1645915718257,1.3440877,2807.5,2807.3,0.14738884]
[1645915718458,1.3440877,2807.5,2807.4,0.14738884]
[1645915718858,1.3440877,2807.5,2806.9,0.67571424]
[1645915719058,1.3440877,2807.5,2806.9,0.69449439]
[1645915719258,1.3440877,2807.5,2807.0,0.14738884]
[1645915719508,1.9981877,2807.5,2807.0,0.14738884]
[1645915719705,1.6981877,2807.4,2807.0,0.14738884]
[1645915719904,1.3440877,2807.3,2807.0,0.14738884]
[1645915720304,1.3440877,2807.3,2807.1,0.14738884]
[1645915720507,1.3440877,2807.3,2807.2,0.14738884]
[1645915720905,1.3440877,2807.3,2806.8,0.82310308]
[1645915721804,1.3440877,2807.3,2806.9,0.82310308]
[1645915722004,1.3440877,2807.3,2807.0,0.14738884]
[1645915722208,1.3440877,2807.3,2807.1,0.14738884]
[1645915722404,1.3440877,2807.3,2807.2,0.14738884]
[1645915722607,1.3440877,2807.3,2806.9,0.82310308]
[1645915722805,0.3541,2807.6,2807.0,0.14738884]
[1645915723005,1.34308023,2807.5,2807.1,0.14738884]
[1645915723264,1.34308023,2807.5,2807.2,0.14738884]
[1645915723663,1.34308023,2807.4,2807.3,0.14738884]
[1645915723860,1.34308023,2807.5,2807.0,0.67571424]
[1645915724063,1.69718023,2807.5,2807.1,0.14738884]
[1645915724260,1.34308023,2807.4,2807.2,0.14738884]
[1645915724463,6.05623141,2807.7,2807.3,0.14738884]
[1645915724664,1.34303937,2807.6,2807.4,0.14738884]
[1645915724866,1.64303937,2807.6,2807.5,0.14738884]
[1645915725064,5.14303937,2807.6,2807.5,0.14738884]
[1645915725263,6.14303937,2807.6,2807.5,0.14738884]
[1645915725463,0.3541,2807.5,2806.9,0.01877996]
[1645915725664,5.19713937,2807.4,2807.0,0.14710556]
[1645915725867,1.34303937,2807.3,2807.0,0.14710556]
[1645915726263,1.34303937,2807.2,2807.1,0.14710556]
[1645915726566,1.34303937,2807.5,2807.1,0.14710556]
[1645915726764,1.34303937,2807.5,2807.2,0.14710556]
[1645915726997,1.34303937,2807.5,2807.3,0.14710556]
[1645915727196,1.34303937,2807.5,2807.4,0.14710556]
[1645915727400,1.34303937,2807.5,2806.8,0.82618849]
[1645915727596,1.34303937,2807.5,2806.9,0.14710556]
[1645915728196,1.69713937,2807.5,2806.9,0.14710556]
[1645915728401,1.34303937,2807.4,2806.9,0.14710556]
[1645915728601,1.34303937,2807.5,2806.8,0.82618849]
[1645915728803,0.3,2807.4,2806.8,0.82618849]
[1645915729001,1.34303937,2807.3,2806.8,0.82618849]
[1645915731250,0.3,2807.4,2806.8,0.82618849]
[1645915731444,0.3541,2807.5,2806.8,0.82618849]
[1645915731744,1.69710759,2807.4,2806.8,0.82618849]
[1645915731945,1.34301362,2807.3,2806.8,0.82618849]
[1645915732244,1.34300575,2807.2,2806.8,0.82618849]
[1645915732443,4.8,2807.6,2807.3,0.26315298]
[1645915732648,1.34311349,2807.5,2807.4,0.14710556]
[1645915733650,1.34221004,2807.5,2807.4,0.14710556]
[1645915735404,0.3,2807.7,2807.4,0.14710556]
[1645915735803,0.3,2807.9,2807.4,0.14710556]
[1645915736003,0.97047312,2808.0,2807.4,0.14710556]
[1645915736206,0.67047312,2808.0,2807.4,0.14710556]
[1645915736406,0.67047312,2808.2,2807.4,0.14710556]
[1645915736809,2.40869814,2808.3,2807.4,0.14710556]
[1645915737204,0.67047312,2808.3,2807.4,0.14710556]
[1645915737405,0.67047312,2808.2,2807.4,0.14710556]
[1645915737606,0.67047312,2808.3,2807.4,0.14710556]
[1645915738877,0.67047312,2808.2,2807.4,0.14710556]
[1645915739079,0.67047312,2808.3,2807.4,0.14710556]
[1645915739879,0.67047312,2808.3,2807.3,0.93886722]
[1645915740078,0.67047312,2808.3,2807.3,0.26315298]
[1645915740280,0.67047312,2808.3,2807.3,0.93886722]
[1645915741282,0.67047312,2808.3,2807.3,0.26315298]
[1645915741283,0.67047312,2808.2,2807.3,0.26315298]
[1645915741483,0.67047312,2808.1,2807.3,0.26315298]
[1645915741879,0.67047312,2808.0,2807.3,0.26315298]
[1645915742325,0.3541,2807.9,2807.3,0.26315298]
[1645915742540,0.67047312,2808.0,2807.3,0.26315298]
[1645915742726,1.56145202,2808.0,2807.3,0.26315298]
[1645915743131,0.8909789,2808.0,2807.3,0.26315298]
[1645915743526,1.56145202,2808.0,2807.3,0.26315298]
[1645915743926,0.8909789,2808.0,2807.3,0.26315298]
[1645915747159,0.3541,2807.9,2807.3,0.26315298]
[1645915747757,0.8909789,2808.0,2807.3,0.26315298]
[1645915749160,1.2450789,2808.0,2807.3,0.26315298]
[1645915749605,0.8909789,2808.0,2807.3,0.26315298]
[1645915750006,0.6,2808.1,2807.3,0.26315298]
[1645915750213,1.02457312,2808.1,2807.3,0.26315298]
[1645915751018,0.3541,2807.9,2807.3,0.26315298]
[1645915753571,0.3541,2808.0,2807.3,0.26315298]
[1645915753762,1.34500994,2807.9,2807.4,0.14685842]
[1645915754564,1.34500994,2807.8,2807.4,0.14685842]
[1645915754766,1.34500994,2807.7,2807.4,0.14685842]
[1645915755248,1.34500994,2807.6,2807.4,0.14685842]
[1645915755264,1.34500994,2807.5,2807.4,0.14685842]
[1645915755467,1.34542688,2807.9,2807.4,0.14685842]
[1645915755665,1.34543837,2807.8,2807.4,0.14685842]
[1645915755865,0.97047312,2808.1,2807.4,0.14685842]
[1645915755866,1.34543837,2807.7,2807.4,0.14685842]
[1645915756074,0.97047312,2808.1,2807.4,0.14685842]
[1645915756075,1.34543837,2807.6,2807.4,0.14685842]
[1645915756265,0.67047312,2808.1,2807.4,0.14685842]
[1645915756667,2.01589906,2808.1,2807.4,0.14685842]
[1645915756866,1.34542594,2808.0,2807.4,0.14685842]
[1645915757107,1.34542594,2807.9,2807.4,0.14685842]
[1645915757309,1.34542594,2807.8,2807.4,0.14685842]
[1645915757513,1.34542594,2807.7,2807.4,0.14685842]
[1645915757708,1.34542594,2807.6,2807.4,0.14685842]
[1645915757909,1.3454204,2807.5,2807.4,0.14685842]
[1645915758113,2.01579807,2808.0,2807.4,0.14685842]
[1645915758311,1.34532495,2807.9,2807.4,0.14685842]
[1645915758720,1.34532495,2807.8,2807.4,0.14685842]
[1645915758913,1.34532495,2807.7,2807.4,0.14685842]
[1645915759112,1.34532495,2807.6,2807.4,0.14685842]
[1645915759313,1.34532495,2807.5,2807.4,0.14685842]
[1645915759717,1.34532495,2807.7,2807.4,0.14685842]
[1645915759916,0.3541,2807.8,2807.5,0.14684713]
[1645915759917,1.34532495,2807.6,2807.5,0.14684713]
[1645915760115,1.34532495,2807.6,2807.4,0.14683927]
[1645915760314,1.34532495,2807.5,2807.4,0.14683927]
[1645915760515,0.8910527,2807.7,2807.4,0.14683927]
[1645915760516,1.34532495,2807.6,2807.4,0.14683927]
[1645915762585,1.34532495,2807.5,2807.4,0.14683927]
[1645915762783,1.34532495,2807.7,2807.4,0.14683927]
[1645915774825,1.34532495,2807.7,2807.5,0.14664914]
[1645915775025,1.34532495,2807.7,2807.3,0.26315298]
[1645915775226,1.34532495,2807.7,2807.4,0.14664981]
[1645915779173,1.29532495,2807.7,2807.4,0.14664981]
[1645915780022,1.29532495,2807.7,2807.3,0.26315298]
[1645915780321,12.08532495,2807.7,2807.3,0.26315298]
[1645915780522,10.79,2807.7,2807.3,0.26315298]
[1645915780725,2.21559252,2807.8,2807.3,0.26315298]
[1645915781536,4.99464868,2807.5,2807.3,0.26315298]
[1645915781726,16.15176742,2807.4,2807.3,0.26315298]
[1645915781920,19.18221066,2807.4,2807.3,0.26315298]
[1645915782124,20.18221066,2807.4,2807.3,0.26315298]
[1645915782320,23.27527884,2807.4,2807.3,5.298e-05]
[1645915782521,22.60480572,2807.4,2807.3,5.298e-05]
[1645915782922,23.60480572,2807.4,2807.3,5.298e-05]
[1645915783768,24.49610572,2807.4,2807.3,5.298e-05]
[1645915784774,25.16549414,2807.4,2807.3,5.298e-05]
[1645915786670,24.49610572,2807.4,2807.3,5.298e-05]
[1645915788215,25.16549414,2807.4,2807.3,5.298e-05]
[1645915789419,24.49610572,2807.4,2807.3,5.298e-05]
[1645915792160,25.16549414,2807.4,2807.3,5.298e-05]
[1645915792365,11.1441,2807.2,2806.8,0.01878058]
[1645915792562,10.79,2807.0,2806.8,0.01878058]
[1645915792760,14.29,2806.9,2806.8,0.01878058]
[1645915793363,15.59,2806.9,2806.3,0.25336869]
[1645915793564,0.8913421,2806.8,2806.1,0.00336869]
[1645915793765,0.3,2806.7,2806.3,0.02347832]
[1645915794719,0.3,2806.7,2806.1,0.00336869]
[1645915794922,0.3,2806.7,2806.3,0.00469539]
[1645915795719,0.3,2806.7,2806.1,0.00336869]
[1645915795920,0.3,2806.7,2806.0,0.67571424]
[1645915796122,0.3,2806.7,2806.3,0.00469541]
[1645915797023,0.3,2806.7,2806.1,0.00336869]
[1645915797224,0.3,2806.7,2806.3,0.00469541]
[1645915797627,3.8,2806.7,2806.3,0.00469541]